Cogmind - Beta 17.1 @@@ ROGUE MODE // 2026.08.24 @ 18:51:43 Player: Minty Result: Destroyed by 17-8HT(R) with Subdweller Laser Performance ------------- Evolutions (0) 0 Regions Visited (2) 400 Robots Destroyed (14) 70 Value Destroyed (250) 250 Prototype IDs (1) 20 Alien Tech Used (0) 0 Bonus (5250) 5250 TOTAL SCORE: 5990 Bonus ------- Prayed to X0-1V1 5000 Major X0-1V1 Interference 250 Cogmind --------- Core Integrity 0/100 Matter 178/300 Energy 250/250 System Corruption 0% Temperature Cool (15) Movement Treading (160) Location -10/Subcaves Parts ------- > --- POWER (1) -------- Ion Engine > --- PROPULSION (2) --- Light Treads Light Treads > --- UTILITY (2) ------ Small Storage Unit Self-contained Transmogrifier > --- WEAPON (2) ------- (None) > --- INVENTORY (8) ---- Wheel Compact Wheel Power Shielding Hacking Suite X0-1V1's Piety Tracker Peak State ------------ > --- POWER ------------ Ion Engine > --- PROPULSION ------- Aluminum Leg Aluminum Leg > --- UTILITY ---------- Small Storage Unit Self-contained Transmogrifier > --- WEAPON ----------- EM Pulse Gun Grenade Launcher > --- INVENTORY -------- Ion Engine Light Treads Light Treads Wheel Compact Wheel Power Shielding Hacking Suite X0-1V1's Piety Tracker [Rating: 17] Favorites ----------- Power Ion Engine Engine Ion Engine Propulsion Light Treads Treads Light Treads Leg Aluminum Leg Utility Small Storage Unit Device Self-contained Transmogrifier Storage Small Storage Unit Protection Power Shielding Weapon EM Pulse Gun Energy Gun EM Pulse Gun Ballistic Gun Light Assault Rifle Launcher Grenade Launcher Build | -11 -10 -10 ------- Run | Yrd Mat Sub Slots Evolved . | . . . Power . | . . . Propulsion . | . . . Utility . | . . . Weapon . | . . . Parts Attached 7 | . 6 1 Power 1 | . . 1 Engine 1 | . . 1 Core . | . . . Reactor . | . . . Propulsion 2 | . 2 . Treads 2 | . 2 . Leg . | . . . Wheel . | . . . Hover . | . . . Flight . | . . . Utility 2 | . 2 . Device . | . . . Storage 1 | . 1 . Processor . | . . . Hackware . | . . . Protection 1 | . 1 . Artifact . | . . . Weapon 2 | . 2 . Energy Gun 1 | . 1 . Energy Cannon . | . . . Ballistic Gun . | . . . Ballistic Cannon . | . . . Launcher 1 | . 1 . Special Weapon . | . . . Impact Weapon . | . . . Slashing Weapon . | . . . Piercing Weapon . | . . . Special Melee Weapon . | . . . Unidentified Prototypes . | . . . Parts Lost 3 | . . 3 Power 1 | . . 1 Propulsion . | . . . Utility . | . . . Weapon 2 | . . 2 Highest Loss Streak 2 | . . 2 To Critical Strikes . | . . . Average Backups 5 | . 5 5 Power . | . 1 . Propulsion 2 | . 3 2 Utility 1 | . . 3 Weapon . | . . . Tool/Special . | . . . Unused Backups 2 | . 1 1 Power . | . . . Propulsion . | . . . Utility 1 | . . 1 Weapon 1 | . 1 . Tool/Special . | . . . Average Slot Usage (%) 92 | . 89 96 Engine 14 | . 14 14 Treads 14 | . 3 28 Leg 13 | . 25 . Device 7 | . 2 14 Storage 14 | . 14 14 Protection 3 | . 6 . Energy Gun 13 | . 14 13 Launcher 9 | . 8 11 Peak Build Rating 17 | . 17 17 Average Rating 11 | . 7 16 On Entrance 9 | 6 6 16 Avg Prop Armor Cover (%) . | . . . Naked Turns . | . . . Heaviest Build 16 | 12 16 15 Greatest Support 40 | 20 40 40 Greatest Overweight (x) . | . . . Average Overweight (x) . | . . . Largest Inventory Capacity 8 | . 8 8 Average Capacity 7 | . 7 8 Most Carried 8 | . 8 7 Average Carried 5 | . 6 5 Final Capacity 8 | 8 8 8 Final Carried 7 | 6 7 5 Class Distribution -------------------- 100% | Mutant Dominant Class ---------------- Mutant | -10/Materials Mutant | -10/Subcaves Resources | -11 -10 -10 ----------- Run | Yrd Mat Sub Matter Collected 363 | 200 103 60 Remotely . | . . . Salvage Created 244 | . 180 64 Parts 30 | . 22 8 Haulers Intercepted 1 | . 1 . Recyclers Shooed . | . . . Parts Field Recycled . | . . . Retrieved Matter . | . . . Parts Self-Destructed 10 | . . 10 Prevented . | . . . Parts Restored . | . . . Kills | -11 -10 -10 ------- Run | Yrd Mat Sub Combat Hostiles Destroyed 10 | . 8 2 Guns 2 | . 1 1 AOE 8 | . 7 1 Classes Destroyed 7 | . 6 1 Builder 1 | . 1 . Hauler 1 | . 1 . Recycler 1 | . 1 . Operator 1 | . 1 . Swarmer 6 | . 6 . Grunt 2 | . 2 . Subdweller 2 | . . 2 Best Kill Streak 5 | . 5 2 Combat Bots Only 3 | . 3 2 Max Kills in Single Turn 2 | . 2 1 Gunslinging . | . . . Exploded 2 | . 2 1 Melee . | . . . Uniques/NPCs Destroyed . | . . . Combat | -11 -10 -10 -------- Run | Yrd Mat Sub Hostile Shots Fired 36 | . 22 14 Missed 9 | . 5 4 Hits 27 | . 17 10 Projectile 27 | . 17 10 AOE 1 | . . 1 Damage Taken 515 | . 205 310 Core 118 | . 24 94 Absorbed by Shields . | . . . Redirected to Shielding 8 | . 8 . Core Remaining (%) 100 | 100 . . Volleys Fired 26 | . 17 9 Largest 2 | . 2 2 Hottest 70 | . 70 70 Shots Fired 34 | . 24 10 Gun 12 | . 10 2 Cannon . | . . . Launcher 22 | . 14 8 Special . | . . . Kinetic . | . . . Thermal . | . . . Explosive 22 | . 14 8 Electromagnetic 12 | . 10 2 Robot Hit Streak 6 | . 6 6 Robot Miss Streak 3 | . 3 . Penetration Max . | . . . Secondary Targets . | . . . Shots Hit Robots 17 | . 12 5 Core Hits 23 | . 18 5 Critical Kills . | . . . Critical Parts Destroyed . | . . . Critical Strikes . | . . . Melee Attacks . | . . . Impact . | . . . Slashing . | . . . Piercing . | . . . Sneak Attacks . | . . . Combat Hostiles . | . . . Follow-up Attacks . | . . . Damage Inflicted 1164 | . 869 295 Guns 99 | . 76 23 Cannons . | . . . Explosions 1065 | . 793 272 Melee . | . . . Ramming . | . . . Kinetic . | . . . Thermal 77 | . 77 . Explosive 988 | . 716 272 Electromagnetic 99 | . 76 23 Impact . | . . . Slashing . | . . . Piercing . | . . . Highest Corruption . | . . . Average Corruption . | . . . Corruption Purged . | . . . Corruption Blocked . | . . . Overload Shots . | . . . Overflow Damage 26 | . 26 . Projectiles . | . . . Explosions 26 | . 26 . Melee . | . . . Knockbacks . | . . . Impact . | . . . Kinetic . | . . . Secondary . | . . . Self-Inflicted Damage 30 | . 30 . Shots 4 | . 4 . Rammed . | . . . Targets Rammed . | . . . Kicked . | . . . Crushed . | . . . Highest Temperature 81 | . 81 . Average Temperature 37 | . 37 . Received Heat Transfer 99 | . 45 54 Siege Activations . | . . . Martial Activations . | . . . Shielding Activations . | . . . Robots Disrupted . | . . . Combat Hostiles . | . . . Robots Corrupted . | . . . Combat Hostiles . | . . . Parts Fried . | . . . Impact Corruptions . | . . . Robots Melted . | . . . Combat Hostiles . | . . . Parts Melted . | . . . Heat Transferred 100 | . 100 . Parts Sabotaged . | . . . Parts Stolen . | . . . Parts Stripped . | . . . Power Chain Reactions 1 | . 1 . Alert | -11 -10 -10 ------- Run | Yrd Mat Sub Maximum Alert Level 1 | . 1 . Low Security (%) 74 | . 74 . Level 1 25 | . 25 . Level 2 . | . . . Level 3 . | . . . Level 4 . | . . . Level 5 . | . . . High Security . | . . . Max Security . | . . . Peak Influence 223 | . 223 . Initial . | . . . Average 108 | . 108 . Influence Increases 305 | . 305 . Destroy 0b10 Robot/C 160 | . 160 . Destroy 0b10 Robot/NC 20 | . 20 . Destroy Leader 32 | . 32 . Successful Hack 19 | . 19 . Destroy Structure 74 | . 74 . Influence Decreases 305 | . 100 205 Entered New Map 99 | . . 99 Time Decay 196 | . 100 96 Lost Part 10 | . . 10 Squads Dispatched . | . . . Investigation . | . . . Extermination . | . . . Reinforcement . | . . . Assault . | . . . Garrison . | . . . Intercept . | . . . Searches Triggered . | . . . Construction Impeded . | . . . Haulers Reinforced . | . . . Active Scanning Responses . | . . . Cargo Convoy Interrupts . | . . . Stealth | -11 -10 -10 --------- Run | Yrd Mat Sub Distress Signals 1 | . 1 . Communications Jammed . | . . . Distress Signals . | . . . Times Spotted 15 | . 11 4 Peak Tracking Total 4 | . 4 3 Tactical Retreats . | . . . Traps | -11 -10 -10 ------- Run | Yrd Mat Sub Traps Triggered . | . . . Indirectly . | . . . Trap Hack Attempts . | . . . Triggered . | . . . Disarmed . | . . . Reprogrammed . | . . . Reused . | . . . Traps Extracted . | . . . Installed . | . . . Triggered . | . . . Machines | -11 -10 -10 ---------- Run | Yrd Mat Sub Machines Disabled . | . . . Max in Single Turn . | . . . Machines Repaired . | . . . Machines Dismantled . | . . . Machines Sabotaged . | . . . Overloaded Fab Kills . | . . . Hacking | -11 -10 -10 --------- Run | Yrd Mat Sub Machines Accessed 4 | . 4 . Terminals 4 | . 4 . Fabricators . | . . . Repair Stations . | . . . Recycling Units . | . . . Scanalyzers . | . . . Garrison Access . | . . . Total Hacks 7 | . 7 . Successful 3 | . 3 . Failed 4 | . 4 . Catastrophic 1 | . 1 . Database Lockouts . | . . . Manual 5 | . 5 . Terminals 7 | . 7 . Fabricators . | . . . Repair Stations . | . . . Recycling Units . | . . . Scanalyzers . | . . . Garrison Access . | . . . Terminal Hacks 3 | . 3 . Maintenance Status 1 | . 1 . Hauler Manifests 1 | . 1 . Zone Layout 1 | . 1 . Fabricator Hacks . | . . . Repair Station Hacks . | . . . Recycling Unit Hacks . | . . . Scanalyzer . | . . . Garrison Access Hacks . | . . . Unauthorized Hacks . | . . . Terminals . | . . . Fabricators . | . . . Repair Stations . | . . . Recycling Units . | . . . Scanalyzers . | . . . Garrison Access . | . . . Data Cores Recovered 1 | . 1 . Used . | . . . Hacking Detections 4 | . 4 . Full Trace Events . | . . . Feedback Events . | . . . Feedback Blocked . | . . . Robot Schematics Acquired . | . . . Robots Built . | . . . Authchips . | . . . Time . | . . . Total Robot Build Rating . | . . . Part Schematics Acquired . | . . . Parts Built . | . . . Authchips . | . . . Time . | . . . Total Part Build Rating . | . . . Part Studies Acquired . | . . . Parts Repaired . | . . . Time . | . . . Parts Recycled . | . . . Recycled Matter . | . . . Retrieved Matter . | . . . Retrieved Components . | . . . Parts Scanalyzed . | . . . Part Schematics Acquired . | . . . Parts Damaged . | . . . Bothacking | -11 -10 -10 ------------ Run | Yrd Mat Sub Used RIF Installer . | . . . Robots Hacked . | . . . Non-combat . | . . . Combat . | . . . Robot Hacks Applied . | . . . Relay Couplers Released . | . . . Fabnet Peak Effective % . | . . . Robots Rewired . | . . . Allies Hacked . | . . . Hacks Repelled . | . . . Allies | -11 -10 -10 -------- Run | Yrd Mat Sub Total Allies . | . . . Largest Group . | . . . Highest-Rated Group . | . . . Highest-Rated Ally . | . . . Total Orders . | . . . Ally Attacks . | . . . Total Damage . | . . . Kills . | . . . Allies Corrupted . | . . . Allies Melted . | . . . X0-1V1 Amusement Gains 81 | . 11 70 Average Entertainment 14 | . 22 13 Bad Acts 2 | . . 2 Intel | -11 -10 -10 ------- Run | Yrd Mat Sub Active Infowar (turns) . | . . . Robot Analysis Total . | . . . Derelict Logs Recovered 2 | . . 2 Drone Launches . | . . . Drone Recoveries . | . . . Exploration | -11 -10 -10 ------------- Run | Yrd Mat Sub Turns Passed 508 | . 271 237 Spaces Moved 309 | 1 175 133 Core . | . . . Treads 145 | . 12 133 Legs 164 | 1 163 . Wheels . | . . . Hover . | . . . Flight . | . . . Fastest Speed 120 | 120 120 160 Average Speed 138 | 120 122 160 Slowest Speed 160 | 120 160 160 Overloaded Moves . | . . . Propulsion Burnouts . | . . . Robots Hopped . | . . . Potential Cave-ins . | . . . Cave-ins Triggered . | . . . Exploration Rate (%) 17 | 2 36 13 Regions Visited 2 Branch Regions 1 Pre-discovered Areas . | . . . Known Exits Taken . | . . . Unknown Exits Taken 2 | 1 1 . Scrap Searched . | . . . Spaces Dug . | . . . Terrain Destroyed 112 | . 81 31 Melee . | . . . Projectile . | . . . AOE 112 | . 81 31 Terrain Rammed . | . . . Walls Destroyed . | . . . Machines Disabled . | . . . Actions | -11 -10 -10 --------- Run | Yrd Mat Sub Total 358 | . 210 148 Wait 5 | . 1 4 Move 307 | . 174 133 Hop . | . . . Pick Up 5 | . 5 . Fast Attach 2 | . 2 . Attach 6 | . 4 2 Detach 2 | . 2 . Swap . | . . . Drop 5 | . 5 . Fire 26 | . 17 9 Melee . | . . . Ram . | . . . Kick . | . . . Crush . | . . . Escape Stasis . | . . . Rewire . | . . . Trap . | . . . Miscellaneous . | . . . Route ------- -11/Scrapyard -10/Materials -10/Subcaves History --------- Turn | Location | Event 1 | -11/Scrapyard | Discovered new exit (range 0) 1 | -11/Scrapyard | Entered Materials 238 | -10/Materials | Made a sacrifice at D.C.S.S. Altar Unit 238 | -10/Materials | Forcibly received Sfc. Transmogifier from X0-1V1 262 | -10/Materials | Discovered new exit (range 8) 272 | -10/Materials | Entered Subcaves 273 | -10/Subcaves | Approached by a straggling Scientist 290 | -10/Subcaves | Learned Materials emergency access door positions 303 | -10/Subcaves | Learned Materials security intel 304 | -10/Subcaves | Build established: Mutant 482 | -10/Subcaves | Core integrity fell below 50% 506 | -10/Subcaves | Ambushed by Subdweller buried in earth 507 | -10/Subcaves | Core integrity fell below 20% 509 | -10/Subcaves | Destroyed by 17-8HT(R) with Subdweller Laser Last Messages --------------- 00333_ Acquired 8 matter. 00335_ Acquired 7 matter. 2U-Z0M(c): "I think it's somewhere south of here" 00403_ 2U-Z0M(c) triggered Shrapnel Trap. 00403_ An expanding cloud of shrapnel blasts out in all directions. 00403_ 2U-Z0M(c) destroyed. 00403_ Ion Engine destroyed. 00484_ XO-M6N(R) destroyed. 00490_ EM Pulse Gun destroyed. 00491_ Subatomizers dissect the Sub. Power Source. 00491_ 71-RK3(R) destroyed. 00496_ The unstable cave ceiling collapses. 00500_ Acquired 20 matter. 00506_ 1W-WB9(R) emerges from the Twisted Machinery. 00506_ Subatomizers dissect the Sub. Power Source. 00506_ Grenade Launcher destroyed. 00506_ X0-1V1 is amused. 00507_ YR-B5K(R): "THANKSYOU!" 00508_ X0-1V1: "I know that drunk sailor look when I see it." 00509_ X0-1V1 bursts into laughter! Map ----- +----------------------------------------------------+ | ?????????????????????????????????????????????????? | | ?????????????????????????????????????????????????? | | ?????????????????????????????????????????????????? | | ?????????????????????????????????????????????????? | | ?????????????????????????????????????????????????? | | ?????????????????????????????????????????????????? | | ?????????????????????????????????????????????????? | | ?????????????????????????????????????????????????? | | ?????????????????????????????????????????????????? | | ?????????????????????????????????????????????????? | | ?????????????????????????????????????????????????? | | ?????????????????????????????????????????????????? | | ??????????????????????? ?????????????????????????? | | ????????????????????? #????????????????????????? | | ????????????????????# #???????????????????????? | | ????????????????????# ???????????????????????? | | ????????????????????? ???????????????????????? | | ?????????????????????? ??????????####?????????? | | ??????????????????????# #?????????# ####???###? | | ?????????????????????## ##????????# ##?# ## | | ?????????????????????# ###????### ## | | ???????????????## ???# ; ##?### | | ?????????????### ##; ; ### | | ???????????? R | | ????????????R & | | ???????????? @ & | | ???????????????# %= &&# ### | | ???????????????#" ## [ ;;# #?# | | ????????????????????# ; ### ##?# | | ????????????????????# ; ###?#####??# ## | | ????????????????????###" ??????????# ##?# | | ??????????????????????## ??????????## ##?# | | ???????????????????????## "??????????# ## # | | ????????????????????????#### ??????????# # | | ????????????????????????????#??????????# # | | ??????????????????????????????????????## ## | | ?????????????????????????????????????## ##? | | ?????????????????????????????????????# ##?? | | ?????????????????????????????????????#### ###??? | | ???????????????????????????????????????# ##????? | | ???????????????????????????????????###### ##?###? | | ??????????????????????????????? # ### ## | | ????????????????????????????? # | | ????????????????????????????? | | ?????????????????????????????? ### ### ## | | ?????????????????????????????? ????#####??### #? | | ?????????????????????????????????????????????## ## | | ??????????????????????????????????????????????# | | ????????????????????????????????????????????### | | ???????????????????????????????????????????## | +----------------------------------------------------+ Best States ------------- Heat Dissipation 25 Energy Generation 10 Energy Capacity 250 Matter Stores 300 Matter Capacity 300 Sight Range 16 Terrain Scan Density 10 Power Shielding 33 Evasion (%) 55 Recoil Reduction 2 Item Schematics ----------------- None Robot Schematics ------------------ None Fabricated ------------ Nothing Repaired ---------- Nothing Studied --------- None Alien Tech Used ----------------- None Achievements -------------- None Challenges ------------ None Game ------ Seed BoltRelayFirepult Manual? 0 Play Time 00:04:30 Cumulative 1378.4 hours Start 2026.08.24 @ 14:42:15 End 2026.08.24 @ 18:51:43 Sessions 3 Manual Loads 0 Difficulty Rogue Special Mode None Game No. 1691 Rogue 1407 Adventurer 124 Explorer 160 Win Type - Total 72 Types 55/0/11/4/1/0/0/1/0/0 Lore% 92 Gallery% 84 Achievement% 74 Wizard Run 0 Options --------- Layout 0 ASCII 0 Keyboard 1 Movement Numpad Keybinds 0 Fullscreen 2 Font 18/X11 Map View 76x50 Zoom Use 0% Tactical HUD 1 Map Filters NONE Filters NONE Steam 1 RUN: c41a0e70-bbec-426c-91f7-49473891a16f